bitfinex/quotes_ETHUSD_20241223
["timestamp","ask_amount","ask_price","bid_price","bid_amount"]
[1734994334234,8.40995561,3451.4,3451.3,4.58482874]
[1734994334563,8.40995561,3451.4,3451.3,1.35739756]
[1734994335124,10.92783866,3451.4,3451.3,1.35739756]
[1734994337770,15.18362904,3451.4,3451.3,1.35739756]
[1734994338426,15.73362904,3451.4,3451.3,1.35739756]
[1734994338669,3.8205,3451.3,3450.9,0.2488]
[1734994338967,1.91058412,3451.0,3450.9,0.2488]
[1734994339126,4.9468142,3451.0,3450.9,0.2488]
[1734994339565,1.9468142,3451.0,3450.9,0.2488]
[1734994340129,10.98973352,3451.0,3450.9,0.2488]
[1734994340343,10.95350344,3451.0,3450.9,0.2488]
[1734994340549,12.64323595,3451.0,3450.9,0.2488]
[1734994340837,13.19323595,3451.0,3450.9,0.2488]
[1734994341036,13.55935449,3451.0,3450.9,0.2488]
[1734994341841,0.8062,3450.5,3449.0,0.8231]
[1734994342062,3.6161128,3450.9,3449.0,0.8231]
[1734994342063,0.8062,3450.0,3449.0,0.8231]
[1734994342265,0.03624167,3449.9,3449.0,0.8231]
[1734994342839,0.8062,3449.8,3449.0,0.8231]
[1734994343038,0.0362417,3449.7,3449.0,0.8231]
[1734994343266,0.0362417,3449.7,3448.7,1.91318412]
[1734994343849,1.2135077,3449.6,3448.7,0.8231]
[1734994344052,0.8062,3449.4,3448.7,0.8231]
[1734994344369,0.0362462,3449.3,3448.3,0.8231]
[1734994344877,0.8062,3449.2,3448.3,0.8231]
[1734994345082,0.03625041,3449.1,3448.0,1.91318412]
[1734994345290,0.03625041,3449.1,3448.0,0.8231]
[1734994345477,0.8062,3449.0,3448.0,0.8231]
[1734994345679,0.8062,3448.8,3447.9,0.57329557]
[1734994345850,0.03625394,3448.7,3447.9,0.57329557]
[1734994346047,0.8062,3448.6,3447.9,0.57329557]
[1734994346430,0.03625394,3448.5,3447.9,0.57329557]
[1734994346686,0.03625394,3448.5,3446.4,0.25]
[1734994346687,0.8062,3448.2,3446.9,1.09008412]
[1734994346897,0.8062,3448.2,3447.0,0.77897255]
[1734994347081,0.03625943,3448.1,3447.0,0.77897255]
[1734994347902,0.03625943,3448.1,3447.0,0.19131841]
[1734994348345,0.8062,3448.0,3446.8,0.8231]
[1734994348546,0.84246196,3448.0,3446.8,0.8231]
[1734994348901,0.84246196,3448.0,3446.4,0.8231]
[1734994350290,0.84246196,3448.0,3446.4,1.39260401]
[1734994350854,0.84246196,3448.0,3446.4,0.8231]
[1734994351068,0.8062,3447.8,3446.4,0.8231]
[1734994351272,0.8062,3447.6,3446.4,0.8231]
[1734994351527,0.03626847,3447.5,3446.4,0.8231]
[1734994352004,0.8062,3447.4,3446.1,0.8231]
[1734994352294,0.03626858,3447.3,3446.1,0.8231]
[1734994352493,0.03626858,3447.3,3446.1,1.44755331]
[1734994354324,0.8062,3447.2,3445.9,2.42143313]
[1734994354473,0.03627098,3447.1,3445.9,2.42143313]
[1734994355633,0.03627098,3447.1,3446.1,0.5854285]
[1734994356415,0.8305,3447.0,3446.1,0.5854285]
[1734994356718,0.0362716,3446.9,3446.1,0.5854285]
[1734994357021,0.8667716,3448.0,3446.7,2.42143313]
[1734994357187,0.8667716,3448.0,3446.5,0.8229]
[1734994358428,0.03626641,3447.9,3446.5,0.8229]
[1734994358589,0.8305,3447.8,3446.5,0.8229]
[1734994358911,0.03626643,3447.7,3446.5,0.8229]
[1734994360905,0.8305,3447.8,3446.7,2.42143313]
[1734994361228,0.8305,3447.8,3446.8,0.8229]
[1734994361929,4.40676115,3448.9,3446.9,0.02900739]
[1734994361930,0.8305,3448.8,3446.9,0.02900739]
[1734994362098,0.8305,3448.8,3446.9,0.57900738]
[1734994362437,0.8305,3448.8,3447.4,0.55]
[1734994362734,0.22372612,3448.7,3447.4,0.55]
[1734994363031,0.25997717,3448.7,3447.4,0.55]
[1734994363623,0.22372612,3448.7,3447.4,0.55]
[1734994363836,0.8305,3448.8,3447.4,0.55]
[1734994364319,0.03625106,3448.7,3447.4,0.55]
[1734994365220,0.03625106,3448.7,3447.4,6.3504]
[1734994366131,0.8305,3448.8,3447.4,6.3504]
[1734994366321,0.8305,3448.8,3447.5,0.71733]
[1734994366529,0.8305,3448.8,3447.5,6.51863]
[1734994367130,0.8305,3448.8,3447.6,0.57013973]
[1734994368008,0.03625106,3448.7,3447.6,6.37123973]
[1734994368221,0.8305,3448.8,3447.6,6.37123973]
[1734994368436,0.8305,3448.8,3447.7,0.39285939]
[1734994368640,0.8305,3448.8,3447.7,6.19385939]
[1734994368810,0.03625106,3448.7,3447.7,6.19385939]
[1734994369309,0.8305,3448.8,3447.7,6.19385939]
[1734994369496,0.03625108,3448.7,3447.7,6.19385939]
[1734994369695,0.03625107,3448.7,3447.8,0.32443331]
[1734994370443,0.03625106,3448.7,3447.8,0.32443331]
[1734994370647,0.8305,3448.6,3447.8,0.32443331]
[1734994371940,0.8305,3448.6,3447.8,6.12523331]
[1734994373307,0.8305,3448.6,3447.8,5.8008]
[1734994377348,0.03625343,3448.5,3447.8,5.8008]
[1734994377696,0.8305,3448.6,3447.8,5.8008]
[1734994383177,0.8305,3448.6,3447.9,0.7634]
[1734994383346,0.0362468,3448.5,3447.9,5.8006]
[1734994383547,0.80974946,3448.7,3447.9,5.8006]
[1734994386079,2.71657172,3448.6,3447.9,5.8006]
[1734994386280,0.80974973,3448.5,3447.9,5.8006]
[1734994387233,1.50306402,3448.4,3447.9,5.8006]
[1734994388382,2.71657172,3448.4,3447.9,5.8006]
[1734994391601,2.71657172,3448.4,3448.0,0.83]
[1734994391811,1.9870077,3448.5,3448.0,6.6305]
[1734994392209,1.9870077,3448.5,3448.0,5.8005]
[1734994392764,0.7735,3448.5,3448.0,5.8005]
[1734994393212,0.7735,3448.5,3448.0,7.58208822]
[1734994393377,1.2135077,3448.6,3448.3,1.09230747]
[1734994393567,1.2135077,3448.6,3448.3,6.89230747]
[1734994393763,1.2135077,3448.5,3448.4,0.83]
[1734994393989,0.8036,3449.2,3448.4,6.6298]
[1734994394165,0.8036,3449.2,3448.6,1.09230747]
[1734994394491,0.8036,3450.3,3449.0,0.83]
[1734994394710,0.8036,3450.3,3449.8,1.09230747]
[1734994394865,0.8036,3450.3,3449.8,6.88970747]
[1734994395065,0.8036,3451.1,3449.8,6.88970747]
[1734994395283,3.0348985,3449.9,3449.8,6.88970747]
[1734994396213,3.0348985,3449.9,3449.8,5.7974]
[1734994396508,1.2126423,3450.7,3449.8,5.7974]
[1734994397697,1.2126423,3450.7,3449.9,0.83]
[1734994398023,0.8036,3451.1,3449.9,6.6273]
[1734994398180,0.8036,3451.1,3450.0,0.68928075]
[1734994398382,0.8036,3451.1,3450.0,6.48638075]
[1734994403709,2.89771,3451.0,3450.0,6.48638075]
[1734994404095,0.8398247,3451.1,3450.0,6.48638075]
[1734994404096,2.89784,3450.9,3450.0,6.48638075]
[1734994405031,3.27160647,3450.9,3450.0,5.7971]
[1734994405496,0.8208,3450.8,3450.0,5.7971]
[1734994406321,2.89829,3450.3,3450.0,5.7971]
[1734994406860,0.804,3450.2,3450.0,5.7971]
[1734994406981,3.70241,3450.2,3450.0,5.7971]
[1734994407176,4.072651,3450.2,3450.0,5.7971]
[1734994408074,2.89841,3450.2,3450.0,5.7971]
[1734994408275,2.89816,3450.5,3450.0,5.7971]
[1734994408531,3.0,3450.4,3450.0,5.7971]
[1734994408825,2.89821,3450.4,3450.0,5.7971]
[1734994409581,3.804,3450.8,3450.0,5.7971]
[1734994409582,2.89807,3450.6,3450.0,5.7971]
[1734994409782,0.670207,3450.5,3450.0,5.7971]
[1734994410083,3.804,3450.8,3450.1,0.7958]
[1734994410283,3.804,3450.8,3450.3,0.58930661]
[1734994410284,2.89796,3450.8,3450.3,0.58930661]
[1734994410512,0.804,3451.1,3450.3,0.58930661]
[1734994410710,2.89795,3450.8,3450.3,6.38590661]
[1734994412241,2.89795,3450.8,3450.3,5.7966]
[1734994413839,3.804,3451.1,3450.3,5.7966]
[1734994414145,0.3804,3451.0,3450.3,5.7966]
[1734994414283,0.804,3451.1,3450.3,5.7966]
[1734994414490,3.0,3450.9,3450.3,5.7966]
[1734994414990,3.0,3450.8,3450.3,5.7966]
[1734994417594,3.0,3451.1,3450.3,5.7966]
[1734994418131,3.0,3451.1,3450.4,0.804]
[1734994418351,3.0,3451.1,3450.4,6.6004]
[1734994419654,0.9300337,3451.4,3450.4,6.6004]
[1734994419655,2.89772,3451.0,3450.4,6.6004]
[1734994422297,2.89757,3451.2,3450.4,6.6004]
[1734994422449,3.0,3451.3,3450.5,0.66004]
[1734994422795,2.89753,3451.3,3450.5,6.45634]
[1734994430958,0.9300337,3451.4,3450.6,3.70202]
[1734994430959,0.1309337,3451.4,3450.6,3.70202]
[1734994431158,0.1309337,3451.4,3450.6,8.69412]
[1734994431361,0.1309337,3451.4,3450.7,0.7565]
[1734994431554,0.1309337,3451.4,3450.8,0.7745827]
[1734994431758,0.1309337,3451.4,3450.8,6.5703827]
[1734994434358,0.1309337,3451.4,3450.9,0.7565]
[1734994434558,0.1309337,3451.4,3450.9,6.5521]
[1734994437699,1.343576,3451.4,3450.9,6.5521]
[1734994438939,2.71805575,3451.3,3450.9,6.5521]
[1734994439108,2.71805575,3451.3,3450.9,7.21214]
[1734994439894,1.81896346,3451.1,3450.9,7.21214]
[1734994440859,3.32437691,3451.1,3450.9,7.21214]
[1734994441932,1.81896346,3451.1,3450.9,7.21214]
[1734994442945,1.21649654,3451.0,3450.9,7.21214]
[1734994443702,1.21649654,3451.0,3450.9,6.5521]
[1734994444347,1.50541345,3451.0,3450.9,6.5521]
[1734994445431,1.21649654,3451.1,3450.9,6.5521]
[1734994446748,1.50541345,3451.0,3450.9,6.5521]
[1734994447947,1.21649654,3451.1,3450.9,6.5521]
[1734994449526,1.21649654,3451.1,3450.9,5.7956]
[1734994450243,2.61396346,3451.3,3450.9,5.7956]
[1734994450447,1.50820057,3451.0,3450.9,5.7956]
[1734994451410,2.72414808,3451.0,3450.9,5.7956]
[1734994452795,3.32716403,3451.0,3450.9,5.7956]
[1734994454994,1.50820057,3451.0,3450.9,5.7956]
[1734994456970,1.50820057,3451.0,3450.9,6.5936]
[1734994458590,3.33353179,3451.0,3450.9,6.5936]
[1734994459417,3.33353179,3451.0,3450.9,5.7956]
[1734994460834,5.94070311,3451.0,3450.9,5.7956]
[1734994462236,6.550317,3451.0,3450.9,5.7956]
[1734994462532,10.4723227,3451.0,3450.9,5.7956]
[1734994463795,9.448027,3451.0,3450.9,5.7956]
[1734994464229,6.4131285,3451.0,3450.9,5.7956]
[1734994464538,3.5154185,3451.0,3450.9,5.7956]
[1734994467996,6.55968649,3451.0,3450.9,5.7956]
[1734994469125,7.05968649,3451.0,3450.9,5.7956]
[1734994469328,3.83505881,3451.0,3450.9,5.7956]
[1734994470137,4.0154185,3451.0,3450.9,5.7956]
[1734994470545,4.0154185,3451.0,3450.9,10.444403]
[1734994471111,4.0154185,3451.0,3450.9,11.53474068]
[1734994471461,2.00820057,3451.0,3450.9,12.08474068]
[1734994472417,0.5,3451.0,3450.9,12.08474068]
[1734994473431,0.5,3451.0,3450.9,11.53474068]
[1734994474756,0.5,3451.0,3450.9,12.08474068]
[1734994478766,0.5,3451.0,3450.9,11.53474068]
[1734994479986,0.5,3451.0,3450.9,7.546613]
[1734994480121,0.5,3451.0,3450.9,5.7956]
[1734994483067,2.0090702,3451.0,3450.9,5.7956]
[1734994483480,8.37372026,3451.9,3450.9,5.7956]
[1734994483681,2.89729,3451.5,3450.9,5.7956]
[1734994485384,1.96219229,3451.4,3450.9,5.7956]
[1734994486126,2.44814052,3451.4,3450.9,5.7956]
[1734994486456,0.7584,3451.1,3450.9,5.7956]
[1734994487798,2.89771,3451.0,3450.9,5.7956]
[1734994487976,4.85990229,3451.0,3450.9,5.7956]
[1734994488179,4.8961259,3451.0,3450.9,5.7956]
[1734994488388,5.71510388,3451.0,3450.9,5.7956]
[1734994490839,4.85990229,3451.0,3450.9,5.7956]
[1734994493640,7.29277875,3451.0,3450.9,5.7956]
[1734994494940,6.33112553,3451.0,3450.9,5.7956]
[1734994496837,9.37273931,3451.0,3450.9,5.7956]
[1734994498138,6.47502931,3451.0,3450.9,5.7956]
[1734994500031,3.43341553,3451.0,3450.9,5.7956]
[1734994501438,6.19266637,3451.0,3450.9,5.7956]
[1734994502740,6.80080453,3451.0,3450.9,5.7956]
[1734994503444,3.90309453,3451.0,3450.9,5.7956]
[1734994503811,5.86584612,3451.0,3450.9,5.7956]
[1734994505038,3.2947365,3451.0,3450.9,5.7956]
[1734994507306,6.1924465,3451.0,3450.9,5.7956]
[1734994508355,6.33149034,3451.0,3450.9,5.7956]
[1734994509663,8.76336163,3451.0,3450.9,5.7956]
[1734994510842,6.33149034,3451.0,3450.9,5.7956]
[1734994511859,8.76336163,3451.0,3450.9,5.7956]
[1734994513254,6.33149034,3451.0,3450.9,5.7956]
[1734994516773,6.1920541,3451.0,3450.9,5.7956]
[1734994517372,3.2943441,3451.0,3450.9,5.7956]
[1734994517731,3.2943441,3451.0,3450.9,6.6212]
[1734994517967,3.2943441,3451.0,3450.9,7.34055828]
[1734994519142,1.47122324,3451.0,3450.9,7.34055828]
[1734994520350,2.68698086,3451.0,3450.9,7.34055828]
[1734994521465,1.21575762,3451.0,3450.9,7.34055828]
[1734994522439,1.21575762,3451.0,3450.9,10.78834828]
[1734994522790,2.68698086,3451.0,3450.9,10.78834828]
[1734994524595,1.21575762,3451.5,3451.0,2.8977]
[1734994524878,1.21575762,3451.5,3451.1,0.71526442]
[1734994525090,1.21575762,3451.5,3451.2,0.8299]
[1734994525289,1.21575762,3451.5,3451.2,6.625]
[1734994525587,1.21575762,3451.5,3451.2,9.52254]
[1734994527593,1.21575762,3451.6,3451.2,9.52254]
[1734994527884,1.21575762,3451.6,3451.3,0.71935828]
[1734994528094,1.21575762,3451.6,3451.3,6.51425828]
[1734994528887,1.21575762,3451.7,3451.3,6.51425828]
[1734994529094,1.21575762,3451.7,3451.4,0.8299]
[1734994529309,1.21575762,3451.7,3451.4,6.6246]
[1734994529442,1.21575762,3451.7,3451.5,0.71526442]
[1734994529644,1.21575762,3451.7,3451.5,6.50986442]
[1734994531859,1.21575762,3451.8,3451.5,6.50986442]
[1734994535559,1.21575762,3451.9,3451.5,6.50986442]
[1734994536963,1.21575762,3452.0,3451.6,0.7898]
[1734994537209,1.21575762,3452.0,3451.6,6.5842]
[1734994537521,1.21575762,3452.0,3451.6,7.30355828]
[1734994538395,1.47014593,3451.9,3451.6,7.30355828]
[1734994539721,1.21575762,3452.0,3451.6,7.30355828]
[1734994541983,1.21575762,3452.1,3451.6,7.30355828]
[1734994543727,1.21575762,3452.2,3451.6,7.30355828]
[1734994544816,2.68523751,3452.1,3451.6,7.30355828]
[1734994545027,2.68523751,3452.1,3451.7,4.16231442]
[1734994545328,2.68523751,3452.1,3451.7,9.40651442]
[1734994546031,1.21575762,3452.3,3451.7,9.40651442]
[1734994547467,1.46926233,3452.2,3451.7,6.50946442]
[1734994547623,1.46926233,3452.2,3451.8,3.98734768]
[1734994547826,1.46926233,3452.2,3451.9,1.50915828]
[1734994548121,1.46926233,3452.2,3451.9,7.30305828]
[1734994548722,1.21575762,3452.3,3451.9,7.30305828]
[1734994550219,1.21575762,3452.3,3452.2,1.09033768]
[1734994550474,1.21575762,3452.3,3452.2,6.88373768]
[1734994550656,1.21575762,3452.3,3452.2,7.5990021]
[1734994551269,1.21575762,3452.7,3452.2,7.5990021]
[1734994551567,1.21575762,3452.7,3452.2,10.4956921]
[1734994552575,1.21575762,3452.8,3452.2,10.4956921]
[1734994553371,1.21575762,3452.8,3452.3,0.7631]
[1734994553567,1.21575762,3452.8,3452.3,6.5563]
[1734994554237,1.21575762,3452.8,3452.3,7.27565828]
[1734994555272,1.21575762,3452.9,3452.3,7.27565828]
[1734994555568,1.21575762,3452.9,3452.3,6.51255828]
[1734994555763,1.21575762,3452.9,3452.4,1.85343768]
[1734994555966,1.21575762,3452.9,3452.4,7.64653768]
[1734994556168,1.21575762,3452.9,3452.5,0.71526442]
[1734994556325,1.47162894,3452.8,3452.5,6.50816442]
[1734994557889,1.21575762,3453.1,3452.5,6.50816442]
[1734994558332,1.21575762,3453.1,3452.5,9.40457442]
[1734994561894,1.47185235,3453.0,3452.6,0.7631]
[1734994562069,1.47185235,3453.0,3452.7,0.71935828]
[1734994562266,1.47185235,3453.0,3452.7,6.51195828]
[1734994563299,1.82312086,3453.2,3452.7,6.51195828]
[1734994563486,1.21575762,3453.3,3452.7,6.51195828]
[1734994564767,1.21575762,3453.3,3452.9,0.7631]
[1734994565075,1.21575762,3453.3,3453.0,0.71526442]
[1734994565281,1.21575762,3453.3,3453.0,6.50736442]
[1734994565911,1.21575762,3453.4,3453.0,6.50736442]
[1734994568518,1.47199451,3453.3,3453.0,6.50736442]
[1734994569787,1.21575762,3453.4,3453.0,6.50736442]
[1734994574884,1.21575762,3453.4,3453.0,5.7921]
[1734994575090,4.11152762,3453.4,3453.0,5.7921]
[1734994575288,0.7614,3453.3,3453.0,5.7921]
[1734994576385,2.89577,3453.4,3453.1,0.8044]
[1734994576794,1.21575762,3453.3,3453.1,0.8044]
[1734994577124,1.21575762,3453.3,3453.0,5.7921]
[1734994579529,1.21575762,3453.3,3453.1,0.65965]
[1734994579692,1.47220628,3453.2,3453.1,0.65965]
[1734994580649,1.21575762,3453.3,3453.1,0.65965]
[1734994580650,1.21575762,3453.4,3453.1,0.65965]
[1734994580803,1.21575762,3453.4,3453.0,5.7921]
[1734994581630,1.21575762,3453.4,3453.1,0.8278]
[1734994581839,1.21575762,3453.4,3453.1,6.6197]
[1734994582209,2.68812005,3453.3,3453.1,6.6197]
[1734994582405,2.68812005,3453.3,3453.2,0.55]
[1734994582737,2.68812005,3453.3,3453.2,7.45729177]
[1734994583089,2.68812005,3453.3,3453.2,8.28509177]
[1734994583285,2.68812005,3453.3,3453.2,11.18095177]
[1734994583586,1.21575762,3453.6,3453.2,10.35315177]
[1734994583788,1.21575762,3453.6,3453.5,5.36374768]
[1734994583989,1.21575762,3453.6,3453.5,11.47397861]
[1734994584233,1.21575762,3453.6,3453.5,14.47397861]
[1734994585236,1.21575762,3454.3,3454.2,2.89502]
[1734994585419,1.21575762,3454.3,3454.2,0.8278]
[1734994585625,1.21575762,3454.3,3454.2,1.30913077]
[1734994585792,1.21575762,3454.3,3454.2,7.09923077]
[1734994586445,1.21575762,3454.3,3454.2,8.73956845]
[1734994586998,0.1735311,3454.8,3454.2,8.73956845]
[1734994587197,0.1735311,3454.8,3454.3,0.634261]
[1734994587396,0.1735311,3454.8,3454.3,6.424161]
[1734994587668,0.1735311,3454.8,3454.3,5.7899]
[1734994589381,0.1735311,3454.8,3454.3,8.68483]
[1734994589734,0.1735311,3454.8,3454.4,3.6564]
[1734994590029,0.1735311,3454.8,3454.4,9.4461]
[1734994591784,0.1735311,3454.8,3454.5,0.7616]
[1734994591980,0.1735311,3454.8,3454.6,1.05364377]
[1734994592283,0.1735311,3454.8,3454.6,6.84304377]
[1734994592869,0.1735311,3454.8,3454.7,0.55]
[1734994593064,0.1735311,3454.8,3454.7,6.3392]
[1734994593381,0.1735311,3454.8,3454.7,9.2338]
[1734994593556,0.1735311,3454.8,3454.7,9.61477893]
[1734994594383,0.1735311,3454.8,3454.7,10.37637893]
[1734994597205,0.1735311,3454.8,3454.7,11.46671661]
[1734994605829,0.7948,3456.3,3455.6,1.09033768]
[1734994606005,0.7948,3456.3,3455.6,9.77187768]
[1734994606319,2.61792086,3456.6,3455.8,1.09033768]
[1734994606528,2.61792086,3456.6,3455.8,9.77141768]
[1734994606737,1.82312086,3456.6,3456.0,2.89351]
[1734994606894,1.82312086,3456.6,3456.0,3.98384768]
[1734994607083,1.82312086,3456.6,3456.1,2.89339]
[1734994607432,1.82312086,3456.6,3456.2,2.89332]
[1734994607629,1.82312086,3456.6,3456.2,8.68002]
[1734994607794,1.82312086,3456.6,3456.4,2.89318]
[1734994607997,0.05,3457.0,3456.4,9.46708]
[1734994608193,0.05,3457.0,3456.4,6.5739]
[1734994608489,0.05,3457.0,3456.4,9.46705]
[1734994608693,0.05,3457.0,3456.6,2.893]
[1734994608906,0.05,3457.0,3456.6,5.786]
[1734994611630,0.05,3457.0,3456.6,6.732662]
[1734994611831,0.05,3457.0,3456.8,2.89283]
[1734994612134,0.05,3457.0,3456.9,0.8072]
[1734994612279,0.05,3457.0,3456.9,6.5927]
[1734994612481,0.05,3457.0,3456.9,10.03546]
[1734994612689,0.05,3457.0,3456.9,10.50287427]
[1734994614314,0.05,3457.0,3456.9,7.61011427]
[1734994614526,0.05,3457.0,3456.9,5.7855]
[1734994615284,0.05,3457.0,3456.9,10.03546]
[1734994615534,0.05,3457.0,3456.9,9.48546]
[1734994619487,0.05,3457.0,3456.9,12.48546]
[1734994621191,0.05,3457.0,3456.9,5.7855]
[1734994621564,3.69408,3457.0,3456.9,5.7855]
[1734994621692,4.35635223,3457.0,3456.9,5.7855]
[1734994624314,3.69408,3457.0,3456.9,5.7855]
[1734994624506,0.8014,3457.0,3456.9,5.7855]
[1734994625613,0.05,3457.0,3456.9,5.7855]
[1734994634600,0.05,3457.0,3456.9,8.67826]
[1734994634810,0.05,3457.0,3456.9,9.45366]
[1734994635363,0.05,3457.0,3456.9,5.7855]
[1734994637501,0.05,3457.0,3456.9,8.67826]
[1734994637709,0.05,3457.0,3456.9,9.45366]
[1734994638822,0.05,3457.0,3456.9,14.86184764]
[1734994641017,0.05,3457.0,3456.9,12.45366]
[1734994642482,0.05,3457.0,3456.9,9.45366]
[1734994642664,0.05,3457.0,3456.9,5.7855]
[1734994642881,0.8285,3457.0,3456.9,5.7855]
[1734994643084,3.72118,3457.0,3456.9,5.7855]
[1734994645384,6.72118,3457.0,3456.9,5.7855]
[1734994645782,6.72118,3457.0,3454.7,0.7522]
[1734994645783,0.7785,3456.8,3454.7,0.7522]
[1734994646144,0.7785,3455.8,3454.7,0.7522]
[1734994646437,2.89382,3455.7,3454.7,0.7522]
[1734994648241,2.89382,3455.7,3454.8,0.58259689]
[1734994648445,0.40340412,3455.7,3454.8,0.58259689]
[1734994648603,0.7785,3455.8,3454.7,2.8946]
[1734994650153,0.7785,3455.8,3454.7,8.6829]
[1734994651433,0.7785,3455.8,3454.7,9.266983]
[1734994652549,3.67226,3455.8,3454.7,9.266983]
[1734994652717,0.7785,3455.8,3454.8,2.8945]
[1734994652932,0.7785,3455.8,3454.8,8.6835]
[1734994653135,0.7785,3455.8,3455.0,0.7522]
[1734994653335,1.21575762,3456.2,3455.8,2.89366]
[1734994653534,1.21575762,3456.2,3455.8,8.68106]
[1734994654188,1.21575762,3456.2,3455.8,5.7874]
[1734994654467,1.21575762,3456.2,3455.9,0.943343]
[1734994654777,1.21575762,3456.2,3455.9,6.730543]
[1734994655123,3.21037129,3456.6,3455.9,6.730543]
[1734994655124,0.7785,3456.6,3455.9,6.730543]
[1734994656839,0.7785,3456.6,3455.9,9.624133]
[1734994657043,0.7785,3456.6,3455.9,6.730543]
[1734994658770,3.67152,3456.6,3455.9,6.730543]
[1734994658926,3.67152,3456.6,3455.9,5.7872]
[1734994659691,2.8931,3456.5,3455.9,5.7872]
[1734994659848,2.89319,3456.4,3455.9,5.7872]
[1734994660247,0.7785,3456.6,3455.9,5.7872]
[1734994661776,0.05,3457.0,3456.4,2.89315]
[1734994661959,0.05,3457.0,3456.5,3.21130317]
[1734994662162,0.05,3457.0,3456.5,0.289315]
[1734994662377,0.05,3457.0,3456.9,2.89276]
[1734994662577,0.05,3457.0,3456.9,8.67826]
[1734994663768,1e-05,3457.0,3456.9,11.86354764]
[1734994664150,0.98578977,3457.6,3457.3,3.44243]
[1734994664353,1.20897234,3458.2,3457.5,8.85044764]
[1734994664594,1.20897234,3458.2,3458.1,6.07704764]
[1734994664801,2.34e-06,3458.2,3458.1,11.86054764]
[1734994664998,3.44e-06,3458.3,3458.2,5.89167]
[1734994665181,3.44e-06,3458.3,3458.2,12.45217]
[1734994665517,3.44e-06,3458.3,3458.2,13.00217]
[1734994666882,3.44e-06,3458.3,3458.2,12.45217]
[1734994668377,3.44e-06,3458.3,3458.2,13.04020759]
[1734994670987,3.44e-06,3458.3,3458.2,10.04020759]
[1734994671702,3.44e-06,3458.3,3458.2,9.26310759]
[1734994673507,3.44e-06,3458.3,3458.2,6.37143759]
[1734994676975,3.65909344,3458.3,3458.2,5.7834]
[1734994677566,2.89159344,3458.3,3458.2,5.7834]
[1734994677865,3.76988678,3458.3,3458.2,5.7834]
[1734994678483,3.44e-06,3458.3,3458.2,5.7834]
[1734994683376,2.89159344,3458.3,3458.2,5.7834]
[1734994685221,3.44e-06,3458.3,3458.2,5.7834]
[1734994697770,3.44e-06,3458.3,3458.2,11.85975764]
[1734994698275,0.7926,3459.4,3458.6,2.8913]
[1734994698482,0.7926,3459.4,3458.7,0.28913]
[1734994698937,0.7926,3459.4,3458.7,6.07163]
[1734994699140,0.7926,3459.9,3458.8,0.7765]
[1734994699330,0.7926,3459.9,3459.0,2.89093]
[1734994699527,0.7926,3459.9,3458.8,9.45006]
[1734994699773,1.20310486,3460.7,3458.8,9.45006]
[1734994699774,0.7926,3460.2,3459.2,2.89083]
[1734994700069,0.7926,3460.2,3459.2,8.67253]
[1734994701457,3.0,3460.4,3459.3,3.71268]
[1734994701625,0.7584,3460.5,3459.5,2.89058]
[1734994701825,0.7584,3460.5,3459.5,8.67178]
[1734994702028,0.7584,3460.5,3459.6,0.44015727]
[1734994702274,0.7584,3460.5,3459.6,6.22115727]
[1734994702945,3.64816,3460.5,3459.6,6.22115727]
[1734994704782,0.7584,3460.5,3459.6,6.22115727]
[1734994704943,0.7584,3460.5,3459.6,9.11165727]
[1734994705142,0.7584,3460.5,3459.7,0.91116573]
[1734994705343,0.7584,3460.5,3459.7,6.69196573]
[1734994705586,0.7584,3460.5,3459.7,9.58237573]
[1734994705734,0.7584,3460.5,3459.7,6.69196573]
[1734994707073,3.64817,3460.5,3459.7,6.69196573]
[1734994707275,0.7584,3460.5,3459.8,0.50291054]
[1734994707858,0.7584,3460.5,3459.8,6.28361054]
[1734994708389,3.64822,3460.5,3459.8,6.28361054]
[1734994709564,3.7625,3460.4,3459.8,5.7807]
[1734994709771,2.88994,3460.3,3459.8,5.7807]
[1734994710496,0.7625,3460.4,3459.8,5.7807]
[1734994710701,3.7625,3460.4,3459.8,5.7807]
[1734994711222,0.7625,3460.4,3459.8,5.7807]
[1734994711370,3.65234,3460.4,3459.8,5.7807]
[1734994713825,0.7625,3460.4,3459.8,5.7807]
[1734994714125,3.65236,3460.4,3459.8,5.7807]
[1734994714679,0.7625,3460.4,3459.8,5.7807]
[1734994715523,0.7625,3460.8,3459.8,5.7807]
[1734994715758,2.88959,3460.7,3459.8,5.7807]
[1734994715930,2.88959,3460.7,3459.9,0.9478]
[1734994716098,2.88959,3460.7,3459.9,6.7283]
[1734994718209,2.88968,3460.6,3459.9,6.7283]
[1734994720386,3.65202,3460.8,3459.9,6.7283]
[1734994721935,0.7625,3460.8,3459.9,6.7283]
[1734994722088,2.88994,3460.3,3459.9,5.7805]
[1734994722286,0.7823,3460.1,3459.9,5.7805]
[1734994722493,2.89017,3460.0,3459.9,5.7805]
[1734994722729,3.49823576,3460.0,3459.9,5.7805]
[1734994723026,4.04823576,3460.0,3459.9,5.7805]
[1734994723235,7.04823576,3460.0,3459.9,5.7805]
[1734994724117,6.49823576,3460.0,3459.9,5.7805]
[1734994726901,7.04823576,3460.0,3459.9,5.7805]
[1734994727545,6.49823576,3460.0,3459.9,5.7805]
[1734994729585,3.49823576,3460.0,3459.9,5.7805]
[1734994731605,4.28053576,3460.0,3459.9,5.7805]
[1734994732402,3.49823576,3460.0,3459.9,5.7805]
[1734994732896,2.89017,3460.0,3459.9,5.7805]
[1734994735054,1.20310486,3460.3,3459.9,5.7805]
[1734994735301,2.89002,3460.2,3459.9,5.7805]
[1734994735451,1.20310486,3460.3,3459.9,6.5334]
[1734994736080,1.20310486,3460.5,3459.9,6.5334]
[1734994736294,1.20310486,3460.5,3459.9,7.21674]
[1734994737382,2.88967,3460.6,3459.9,7.21674]
[1734994738000,1.20310486,3460.8,3459.9,7.21674]
[1734994738001,4.09262486,3460.8,3459.9,7.21674]
[1734994738204,1.20310486,3460.8,3460.2,3.64289]
[1734994738413,1.20310486,3460.8,3460.2,6.5329]
[1734994738721,1.20310486,3460.8,3460.4,0.7529]
[1734994738920,1.20310486,3460.8,3460.4,6.5326]
[1734994739219,1.20310486,3460.8,3460.5,0.7529]